bitfinex/quotes_BTCUSD_20241028
["timestamp","ask_amount","ask_price","bid_price","bid_amount"]
[1730138122917,0.48771099,69058.0,69057.0,0.002646]
[1730138123347,0.48271099,69058.0,69057.0,0.002646]
[1730138123775,0.47371099,69058.0,69057.0,0.001646]
[1730138123980,0.46871099,69058.0,69057.0,0.001646]
[1730138124200,0.32190599,69058.0,69057.0,0.077646]
[1730138124415,0.22190599,69058.0,69057.0,0.077646]
[1730138124677,0.22511098,69058.0,69057.0,0.08096985]
[1730138124892,0.19000896,69058.0,69057.0,0.08096985]
[1730138125104,0.17600896,69058.0,69057.0,0.22577685]
[1730138125308,0.19000896,69058.0,69057.0,0.22577685]
[1730138125523,0.17650381,69058.0,69057.0,0.22577685]
[1730138125738,0.17599764,69058.0,69057.0,0.22577685]
[1730138125958,0.15050381,69058.0,69057.0,0.22477685]
[1730138126167,0.17299755,69058.0,69057.0,0.22577685]
[1730138126389,0.17799755,69058.0,69057.0,0.22577685]
[1730138126598,0.13950381,69058.0,69057.0,0.22577685]
[1730138126811,0.1530005,69058.0,69057.0,0.22577685]
[1730138127675,0.1530005,69058.0,69057.0,0.08096985]
[1730138127880,0.15300368,69058.0,69057.0,0.21784865]
[1730138128544,0.15300368,69058.0,69057.0,0.07304165]
[1730138128752,0.15300807,69058.0,69057.0,0.07304165]
[1730138131187,0.34937473,69058.0,69057.0,0.07304165]
[1730138131425,0.36288783,69058.0,69057.0,0.07304165]
[1730138131651,0.19895399,69058.0,69057.0,0.0697178]
[1730138132498,0.16382744,69058.0,69057.0,0.0697178]
[1730138132715,0.343777,69058.0,69057.0,0.001]
[1730138132918,0.221972,69058.0,69057.0,0.001]
[1730138133109,0.4575815,69058.0,69057.0,0.001]
[1730138135811,0.5675815,69058.0,69057.0,0.001]
[1730138136195,0.53243694,69058.0,69057.0,0.002648]
[1730138136384,0.56761487,69058.0,69057.0,0.002648]
[1730138139765,0.61080471,69058.0,69057.0,0.002648]
[1730138140086,0.61282807,69058.0,69057.0,0.002648]
[1730138140394,0.63552525,69058.0,69057.0,0.002648]
[1730138140600,0.88352525,69058.0,69057.0,0.002648]
[1730138140809,0.86082807,69058.0,69057.0,0.002648]
[1730138141224,0.81763823,69058.0,69057.0,0.002648]
[1730138141456,0.81763933,69058.0,69057.0,0.002648]
[1730138141659,0.81963933,69058.0,69057.0,0.002648]
[1730138142982,0.97816207,69058.0,69057.0,0.002648]
[1730138143208,1.06466563,69058.0,69057.0,0.002648]
[1730138143416,0.97816207,69058.0,69057.0,0.002648]
[1730138143627,0.97816207,69058.0,69057.0,0.001648]
[1730138143628,1.05068223,69058.0,69057.0,0.001648]
[1730138143865,1.05668223,69058.0,69057.0,0.001648]
[1730138144073,0.98932126,69058.0,69057.0,0.002648]
[1730138144304,0.98332126,69058.0,69057.0,0.002648]
[1730138144952,0.97332126,69058.0,69057.0,0.001648]
[1730138145608,1.09545071,69058.0,69057.0,0.002648]
[1730138146719,1.10945071,69058.0,69057.0,0.002648]
[1730138147169,1.08675396,69058.0,69057.0,0.002648]
[1730138147360,1.0407655,69058.0,69057.0,0.002648]
[1730138147571,1.0867975,69058.0,69057.0,0.002648]
[1730138148306,0.97866805,69058.0,69057.0,0.002648]
[1730138148950,0.97949205,69058.0,69057.0,0.002648]
[1730138149435,0.38844974,69058.0,69057.0,0.002648]
[1730138149665,0.21389704,69058.0,69057.0,0.002648]
[1730138149902,0.21389704,69058.0,69057.0,0.080748]
[1730138150150,0.21389704,69058.0,69057.0,0.08370032]
[1730138150586,0.18589704,69058.0,69057.0,0.08270032]
[1730138150801,0.20889704,69058.0,69057.0,0.08370032]
[1730138151040,0.16015887,69058.0,69057.0,0.08370032]
[1730138151295,0.3536943,69058.0,69057.0,0.08370032]
[1730138151730,0.37638818,69058.0,69057.0,0.08370032]
[1730138151946,0.23158318,69058.0,69057.0,0.08370032]
[1730138152163,0.21758318,69058.0,69057.0,0.08270032]
[1730138152603,0.22258318,69058.0,69057.0,0.08270032]
[1730138153031,0.1998893,69058.0,69057.0,0.08270032]
[1730138154485,0.22258282,69058.0,69057.0,0.08270032]
[1730138154693,0.17655803,69058.0,69057.0,0.08270032]
[1730138154909,0.22258017,69058.0,69057.0,0.08270032]
[1730138155371,0.36738517,69058.0,69057.0,0.08270032]
[1730138155633,0.36738517,69058.0,69057.0,0.079748]
[1730138157324,0.34469165,69058.0,69057.0,0.079748]
[1730138158669,0.34469714,69058.0,69057.0,0.079748]
[1730138161397,0.34469714,69058.0,69057.0,0.373955]
[1730138161398,0.06358676,69058.0,69057.0,0.373955]
[1730138161632,0.07442573,69058.0,69057.0,0.37688262]
[1730138162344,0.05274778,69058.0,69057.0,0.37688262]
[1730138162824,0.06942573,69058.0,69057.0,0.37688262]
[1730138163043,0.06144148,69058.0,69057.0,0.37688262]
[1730138163300,0.07644148,69058.0,69057.0,0.37688262]
[1730138163556,0.07144148,69058.0,69057.0,0.37688262]
[1730138163799,0.04874778,69058.0,69057.0,0.37688262]
[1730138165042,0.04874778,69058.0,69057.0,0.37988262]
[1730138165291,0.04874778,69058.0,69057.0,0.22707562]
[1730138165292,0.03874778,69058.0,69057.0,0.22707562]
[1730138165538,0.33405659,69058.0,69057.0,0.23207562]
[1730138165776,0.21292954,69058.0,69057.0,0.23207562]
[1730138166008,0.21092954,69058.0,69057.0,0.23207562]
[1730138166226,0.37842758,69058.0,69057.0,0.23207562]
[1730138166655,0.37842758,69058.0,69057.0,0.229148]
[1730138167315,0.35573454,69058.0,69057.0,0.229148]
[1730138167950,0.35573454,69058.0,69057.0,0.224148]
[1730138168165,0.35573454,69058.0,69057.0,0.226148]
[1730138168377,0.21192954,69058.0,69057.0,0.226148]
[1730138168581,0.3567271,69058.0,69057.0,0.22704352]
[1730138169215,0.3627271,69058.0,69057.0,0.22704352]
[1730138170089,0.3627271,69058.0,69057.0,0.224148]
[1730138170340,0.3627271,69058.0,69057.0,0.079748]
[1730138170561,0.46726939,69058.0,69057.0,0.001648]
[1730138171471,0.3627271,69058.0,69057.0,0.001648]
[1730138171690,0.144814,69055.0,69050.0,0.212894]
[1730138171894,0.2100981,69054.0,69050.0,0.212894]
[1730138172110,0.03522666,69053.0,69050.0,0.212894]
[1730138172336,0.16405252,69052.0,69050.0,0.212894]
[1730138172546,0.03522666,69051.0,69050.0,0.212894]
[1730138172763,0.05958799,69051.0,69050.0,0.212894]
[1730138173384,0.05958799,69051.0,69050.0,0.214894]
[1730138173798,0.05958799,69051.0,69050.0,0.359716]
[1730138174006,0.05958799,69051.0,69050.0,0.214894]
[1730138174630,0.05958799,69051.0,69050.0,0.213894]
[1730138174833,0.06058799,69051.0,69050.0,0.219894]
[1730138175245,0.06058799,69051.0,69050.0,0.218894]
[1730138175668,0.06258799,69051.0,69050.0,0.212894]
[1730138176082,0.003,69051.0,69050.0,0.214894]
[1730138176292,0.06262501,69051.0,69050.0,0.214894]
[1730138177549,0.20744501,69051.0,69050.0,0.214894]
[1730138177750,0.06262501,69051.0,69050.0,0.214894]
[1730138179115,0.20744501,69051.0,69050.0,0.214894]
[1730138179313,0.35794882,69051.0,69050.0,0.0806]
[1730138179781,0.50371915,69051.0,69050.0,0.002]
[1730138179923,0.60871915,69051.0,69050.0,0.002]
[1730138180524,0.60571915,69051.0,69050.0,0.002]
[1730138180996,0.144828,69047.0,69046.0,0.001648]
[1730138181200,0.61497236,69047.0,69046.0,0.001648]
[1730138181432,0.62853424,69047.0,69046.0,0.001648]
[1730138182184,0.60853424,69047.0,69046.0,0.001648]
[1730138183040,0.61053424,69047.0,69046.0,0.001648]
[1730138183382,0.56167653,69047.0,69046.0,0.001648]
[1730138183544,0.5860801,69047.0,69046.0,0.001648]
[1730138183746,0.60292455,69047.0,69046.0,0.001648]
[1730138184159,0.6164801,69047.0,69046.0,0.001648]
[1730138184362,0.46597629,69047.0,69046.0,0.001648]
[1730138185155,0.45242074,69047.0,69046.0,0.001648]
[1730138186200,0.44155906,69047.0,69046.0,0.001648]
[1730138186467,0.45239821,69047.0,69046.0,0.001648]
[1730138187081,0.58603243,69047.0,69046.0,0.001648]
[1730138187478,0.45239821,69047.0,69046.0,0.001648]
[1730138189830,0.45739821,69047.0,69046.0,0.001648]
[1730138191791,0.52241502,69047.0,69046.0,0.001648]
[1730138192206,0.45739821,69047.0,69046.0,0.001648]
[1730138193104,0.52241185,69047.0,69046.0,0.001648]
[1730138193317,0.6512428,69047.0,69046.0,0.001648]
[1730138193529,0.60790202,69047.0,69046.0,0.001648]
[1730138194820,0.60872602,69047.0,69046.0,0.001648]
[1730138195033,0.67372352,69047.0,69046.0,0.001648]
[1730138195253,0.76709791,69047.0,69046.0,0.001648]
[1730138196308,0.60870737,69047.0,69046.0,0.001648]
[1730138196527,0.6737067,69047.0,69046.0,0.001648]
[1730138196957,0.60870737,69047.0,69046.0,0.001648]
[1730138197213,0.67370618,69047.0,69046.0,0.001648]
[1730138198069,0.60870737,69047.0,69046.0,0.001648]
[1730138198492,0.65203161,69047.0,69046.0,0.001648]
[1730138198909,0.65204142,69047.0,69046.0,0.001648]
[1730138200441,0.50153761,69047.0,69046.0,0.001648]
[1730138200648,0.45821337,69047.0,69046.0,0.001648]
[1730138200864,0.50153761,69047.0,69046.0,0.001648]
[1730138202180,0.45821337,69047.0,69046.0,0.001648]
[1730138202817,0.42299844,69047.0,69046.0,0.001648]
[1730138203041,0.60874079,69047.0,69046.0,0.001648]
[1730138206295,1.27160045,69047.0,69046.0,0.001648]
[1730138206509,1.38197293,69047.0,69046.0,0.001648]
[1730138206726,1.38200521,69047.0,69046.0,0.001648]
[1730138206936,0.282833,69045.0,69044.0,0.00113151]
[1730138207137,0.63754553,69045.0,69044.0,0.00113151]
[1730138207347,0.6847254,69045.0,69044.0,0.00113151]
[1730138208203,0.6987254,69045.0,69044.0,0.00213151]
[1730138209380,0.69774184,69045.0,69044.0,0.00213151]
[1730138209558,0.87430751,69045.0,69044.0,0.00213151]
[1730138209992,0.87230751,69045.0,69044.0,0.00213151]
[1730138210463,0.87232096,69045.0,69044.0,0.00213151]
[1730138211536,0.93544669,69045.0,69044.0,0.00213151]
[1730138211738,0.82714109,69045.0,69044.0,0.00213151]
[1730138211946,0.91578089,69045.0,69044.0,0.00213151]
[1730138212358,0.82914109,69045.0,69044.0,0.00213151]
[1730138212790,0.82915253,69045.0,69044.0,0.00213151]
[1730138212997,0.82715253,69045.0,69044.0,0.00213151]
[1730138214239,0.79186826,69045.0,69044.0,0.00213151]
[1730138214464,0.82714178,69045.0,69044.0,0.00213151]
[1730138214674,0.82914178,69045.0,69044.0,0.00213151]
[1730138215091,0.87436862,69045.0,69044.0,0.00213151]
[1730138215789,0.87436862,69045.0,69044.0,5.1e-07]
[1730138216192,0.149872,69026.0,69025.0,0.21780956]
[1730138216410,0.5538283,69026.0,69025.0,0.22064586]
[1730138216594,0.144881,69022.0,69021.0,0.0015]
[1730138216843,0.35365885,69022.0,69021.0,0.00433674]
[1730138217057,0.4645124,69022.0,69021.0,0.00433674]
[1730138217503,0.4645124,69022.0,69021.0,0.0015]
[1730138217718,0.52608014,69022.0,69021.0,0.0015]
[1730138217937,0.53413365,69022.0,69021.0,0.0065]
[1730138218152,0.53913365,69022.0,69021.0,0.0015]
[1730138218385,0.53227836,69022.0,69021.0,0.0015]
[1730138218601,0.99203342,69022.0,69021.0,0.0015]
[1730138218815,0.95055602,69022.0,69021.0,0.0015]
[1730138219241,0.96340574,69022.0,69021.0,0.0015]
[1730138219455,1.00666736,69022.0,69021.0,0.0015]
[1730138219688,1.00466736,69022.0,69021.0,0.0015]
[1730138219895,0.99866736,69022.0,69021.0,0.0015]
[1730138220101,1.00666736,69022.0,69021.0,0.0015]
[1730138220551,1.01066736,69022.0,69021.0,0.0015]
[1730138220763,0.99266736,69022.0,69021.0,0.0015]
[1730138220978,1.00866736,69022.0,69021.0,0.0015]
[1730138221220,1.02266736,69022.0,69021.0,0.0015]
[1730138221651,1.02063654,69022.0,69021.0,0.0015]
[1730138221868,0.005,69016.0,69011.0,0.0805]
[1730138222119,0.267898,69014.0,69011.0,0.0805]
[1730138222378,0.46448233,69014.0,69011.0,0.0805]
[1730138222603,0.50778514,69014.0,69011.0,0.0805]
[1730138223316,0.46448233,69014.0,69011.0,0.0805]
[1730138223561,0.658283,69014.0,69011.0,0.0805]
[1730138223775,0.62898614,69014.0,69011.0,0.0805]
[1730138224221,0.672283,69014.0,69011.0,0.0805]
[1730138224439,0.60575534,69014.0,69011.0,0.0805]
[1730138224651,0.64090791,69014.0,69011.0,0.0805]
[1730138224836,0.66361673,69014.0,69011.0,0.0805]
[1730138226291,0.64090791,69014.0,69011.0,0.0805]
[1730138226500,0.64090791,69014.0,69006.0,0.001638]
[1730138226501,0.64590791,69014.0,69006.0,0.001638]
[1730138227324,0.81513606,69014.0,69006.0,0.001638]
[1730138227536,0.81713606,69014.0,69006.0,0.001638]
[1730138227953,0.92334556,69014.0,69006.0,0.001638]
[1730138228168,0.84366951,69014.0,69006.0,0.001638]
[1730138228405,0.64339451,69014.0,69006.0,0.001638]
[1730138228616,0.68374678,69014.0,69006.0,0.001638]
[1730138228832,0.56649793,69014.0,69006.0,0.001638]
[1730138229049,0.52324297,69014.0,69013.0,0.224324]
[1730138229268,0.53324297,69014.0,69013.0,0.000824]
[1730138229706,0.51924297,69014.0,69013.0,0.000824]
[1730138229918,0.66974678,69014.0,69013.0,0.000824]
[1730138230128,0.67374678,69014.0,69013.0,0.000824]
[1730138230368,0.66974678,69014.0,69013.0,0.000824]
[1730138230600,0.68374678,69014.0,69013.0,0.000824]
[1730138232058,0.65472518,69014.0,69013.0,0.000824]
[1730138232301,0.66020563,69014.0,69013.0,0.000824]
[1730138232535,0.67020563,69014.0,69013.0,0.000824]
[1730138233008,0.67020695,69014.0,69013.0,0.000824]
[1730138233465,0.66020695,69014.0,69013.0,0.000824]
[1730138233711,0.67020695,69014.0,69013.0,0.000824]
[1730138233952,0.69291623,69014.0,69013.0,0.000824]
[1730138237218,0.67020695,69014.0,69013.0,0.000824]
[1730138239772,0.66020695,69014.0,69013.0,0.000824]
[1730138240260,0.67020695,69014.0,69013.0,0.000824]
[1730138241691,0.67022589,69014.0,69013.0,0.000824]
[1730138243448,0.65622589,69014.0,69013.0,0.000824]
[1730138243696,0.67022589,69014.0,69013.0,0.000824]
[1730138243934,0.65622589,69014.0,69013.0,0.000824]
[1730138244170,0.66522589,69014.0,69013.0,0.000824]
[1730138244381,0.64622589,69014.0,69013.0,0.000824]
[1730138244794,0.66893546,69014.0,69013.0,0.000824]
[1730138245016,0.65158319,69014.0,69013.0,0.000824]
[1730138245228,0.51507938,69014.0,69013.0,0.150524]
[1730138245438,0.51507938,69014.0,69013.0,0.14955576]
[1730138246340,0.51526515,69014.0,69013.0,0.14955576]
[1730138246571,0.51526515,69014.0,69013.0,0.22545576]
[1730138246773,0.4560074,69014.0,69013.0,0.22545576]
[1730138247033,0.36959306,69014.0,69013.0,0.22842843]
[1730138247239,0.36959306,69014.0,69013.0,0.22545576]
[1730138247666,0.35559306,69014.0,69013.0,0.22545576]
[1730138247894,0.34159306,69014.0,69013.0,0.22545576]
[1730138248119,0.07419125,69014.0,69013.0,0.37035576]
[1730138248362,0.07419125,69014.0,69013.0,0.37334069]
[1730138248572,0.04158566,69014.0,69013.0,0.37334069]
[1730138248795,0.289751,69025.0,69013.0,0.37334069]
[1730138248796,0.21780956,69034.0,69026.0,0.2195]
[1730138249017,0.21780956,69034.0,69013.0,0.01298493]
[1730138249018,0.18305927,69033.0,69030.0,0.1417]
[1730138249231,0.15050381,69033.0,69032.0,0.219]
[1730138249484,0.34142199,69033.0,69032.0,0.219]
[1730138249712,0.34142199,69033.0,69032.0,0.22189484]
[1730138249924,0.34142199,69033.0,69032.0,0.219]
[1730138250138,0.35042199,69033.0,69032.0,0.219]
[1730138250340,0.33687488,69033.0,69032.0,0.219]
[1730138250568,0.3061995,69033.0,69032.0,0.219]
[1730138250811,0.32786302,69033.0,69032.0,0.22]
[1730138251242,0.32786302,69033.0,69032.0,0.219]
[1730138251885,0.33186302,69033.0,69032.0,0.219]
[1730138252559,0.32786302,69033.0,69032.0,0.219]
[1730138252786,0.33786302,69033.0,69032.0,0.219]
[1730138253637,0.36456489,69033.0,69032.0,0.219]
[1730138254532,0.36538889,69033.0,69032.0,0.219]
[1730138255239,0.36538889,69033.0,69032.0,0.22189484]
[1730138257530,0.37889812,69033.0,69032.0,0.22189484]
[1730138258356,0.36538889,69033.0,69032.0,0.22189484]
[1730138259000,0.014824,69033.0,69032.0,0.22189484]
[1730138259213,0.014824,69033.0,69032.0,0.36965184]
[1730138259425,0.014824,69033.0,69032.0,0.36675484]
[1730138260247,0.010824,69033.0,69032.0,0.36675484]
[1730138260657,0.000824,69033.0,69032.0,0.37075484]
[1730138261012,0.010824,69033.0,69032.0,0.37075484]
[1730138261454,0.000824,69033.0,69032.0,0.37075484]
[1730138261867,0.002824,69033.0,69032.0,0.37075484]
[1730138269598,0.002824,69033.0,69032.0,0.38575484]
[1730138270488,0.002824,69033.0,69032.0,0.81633484]
[1730138270893,0.003824,69033.0,69032.0,0.83033484]
[1730138271127,0.001824,69033.0,69032.0,0.83033484]
[1730138271340,0.002824,69033.0,69032.0,0.83333484]
[1730138272616,0.002824,69033.0,69032.0,0.82833484]
[1730138273072,0.002824,69033.0,69032.0,0.82333484]
[1730138273731,0.002824,69033.0,69032.0,0.82833484]
[1730138274000,0.002824,69033.0,69032.0,0.83333484]
[1730138282390,0.002824,69033.0,69032.0,0.82833484]
[1730138282587,0.01637044,69033.0,69032.0,0.82333484]
[1730138283641,0.01637044,69033.0,69032.0,0.80933484]
[1730138283642,0.01537044,69033.0,69032.0,0.80933484]
[1730138284044,0.01537044,69033.0,69032.0,0.82033484]
[1730138284217,0.01437044,69033.0,69032.0,0.82033484]
[1730138284426,0.01437044,69033.0,69032.0,0.80633484]
[1730138284742,0.01437044,69033.0,69032.0,0.82033484]
[1730138285103,0.01537044,69033.0,69032.0,0.83433484]
[1730138285862,0.001824,69033.0,69032.0,0.83433484]
[1730138286064,0.01438125,69033.0,69032.0,0.82033484]
[1730138286273,0.03607849,69033.0,69032.0,0.82033484]
[1730138287051,0.04964031,69033.0,69032.0,0.82033484]
[1730138287261,0.04964031,69033.0,69032.0,0.82933484]
[1730138287472,0.06149386,69033.0,69032.0,0.68447484]
[1730138289549,0.06149386,69033.0,69032.0,0.82933484]
[1730138289773,0.06149386,69033.0,69032.0,0.68447484]
[1730138290410,0.06149386,69033.0,69032.0,0.82933484]
[1730138293128,0.001824,69033.0,69032.0,0.82933484]
[1730138293324,0.0506688,69033.0,69032.0,0.82933484]
[1730138293537,0.0615232,69033.0,69032.0,0.82933484]
[1730138294164,0.0506688,69033.0,69032.0,0.82933484]
[1730138294366,0.0371008,69033.0,69032.0,0.82933484]
[1730138294566,0.015392,69033.0,69032.0,0.83433484]
[1730138294857,0.21780956,69046.0,69041.0,0.14484]
[1730138295083,0.21780956,69046.0,69042.0,0.43452]
[1730138295084,0.34146201,69045.0,69042.0,0.43452]
[1730138295282,0.0461252,69044.0,69042.0,0.43730339]
[1730138295498,0.0461252,69043.0,69042.0,0.43730339]
[1730138296908,0.0217072,69043.0,69042.0,0.43830339]
[1730138297107,0.0461278,69043.0,69042.0,0.43730339]
[1730138297532,0.0461278,69043.0,69042.0,0.44030339]
[1730138298083,0.0481278,69043.0,69042.0,0.44030339]
[1730138300755,0.0345608,69043.0,69042.0,0.44030339]
[1730138300757,0.04812808,69043.0,69042.0,0.44030339]
[1730138301222,0.04895208,69043.0,69042.0,0.44030339]
[1730138304299,0.19379147,69043.0,69042.0,0.44030339]
[1730138304553,0.19379147,69043.0,69042.0,0.43752]
[1730138304799,0.19379147,69043.0,69042.0,0.44031203]
[1730138305666,0.34429528,69043.0,69042.0,0.44031203]
[1730138306139,0.34429528,69043.0,69042.0,0.43752]
[1730138306345,0.34429528,69043.0,69042.0,0.44029926]
[1730138306761,0.34429861,69043.0,69042.0,0.44029926]
[1730138306984,0.35786922,69043.0,69042.0,0.44029926]
[1730138307917,0.357873,69043.0,69042.0,0.44029926]
[1730138308136,0.15332781,69043.0,69042.0,0.44029926]
[1730138308356,0.21303916,69043.0,69042.0,0.44029926]
[1730138308561,0.35787616,69043.0,69042.0,0.44029926]
[1730138311940,0.3443054,69043.0,69042.0,0.44029926]
[1730138312149,0.35787906,69043.0,69042.0,0.44029926]
[1730138313668,0.21304206,69043.0,69042.0,0.44029926]
[1730138313885,0.21304206,69043.0,69042.0,0.43752]
[1730138314308,0.21304206,69043.0,69042.0,0.44030049]
[1730138314309,0.35787906,69043.0,69042.0,0.44030049]
[1730138314525,0.21304206,69043.0,69042.0,0.44030049]
[1730138314977,0.38676675,69043.0,69042.0,0.43752]
[1730138315188,0.5293926,69043.0,69042.0,0.43752]
[1730138315391,0.48596675,69043.0,69042.0,0.44030049]
[1730138315621,0.48596675,69043.0,69042.0,0.43752]
[1730138315814,0.48597028,69043.0,69042.0,0.44030341]
[1730138316471,0.55110906,69043.0,69042.0,0.44030341]
[1730138318030,0.52222716,69043.0,69042.0,0.44030341]
[1730138318252,0.70426967,69043.0,69042.0,0.44030341]
[1730138318687,0.61740708,69043.0,69042.0,0.44030341]
[1730138319546,0.58212528,69043.0,69042.0,0.44030341]
[1730138319751,0.61742246,69043.0,69042.0,0.44030341]
[1730138321660,0.70427441,69043.0,69042.0,0.44030341]
[1730138322078,0.61742246,69043.0,69042.0,0.44030341]
[1730138322708,0.6174049,69043.0,69042.0,0.44030341]
[1730138322951,0.61740491,69043.0,69042.0,0.44030341]
[1730138324289,0.70425664,69043.0,69042.0,0.44030341]
[1730138324488,0.61740491,69043.0,69042.0,0.44030341]
[1730138325756,0.54120491,69043.0,69042.0,0.44030341]
[1730138326192,0.54120349,69043.0,69042.0,0.44030341]
[1730138326896,0.54120349,69043.0,69042.0,0.43752]
[1730138327144,0.50590412,69043.0,69042.0,0.43752]
[1730138327363,0.49233058,69043.0,69042.0,0.44030341]
[1730138327575,0.53919572,69043.0,69042.0,0.44030341]
[1730138327802,0.52962207,69043.0,69042.0,0.43730341]
[1730138328020,0.5431933,69043.0,69042.0,0.43730341]
[1730138328232,0.5391933,69043.0,69042.0,0.43730341]
[1730138328442,0.68969711,69043.0,69042.0,0.43730341]
[1730138328659,0.69469711,69043.0,69042.0,0.43730341]
[1730138328898,0.69469711,69043.0,69042.0,0.43452]
[1730138329133,0.69469711,69043.0,69042.0,0.43730341]
[1730138329358,0.79469711,69043.0,69042.0,0.43730341]
[1730138329573,0.75940562,69043.0,69042.0,0.43730341]
[1730138329774,0.78968292,69043.0,69042.0,0.43452]
[1730138330232,0.79568292,69043.0,69042.0,0.43552]
[1730138330645,0.78968292,69043.0,69042.0,0.43452]
[1730138330826,0.78967959,69043.0,69042.0,0.43452]
[1730138331034,0.79667959,69043.0,69042.0,0.43552]
[1730138331242,0.96609355,69043.0,69042.0,0.43552]
[1730138331515,0.97791492,69043.0,69042.0,0.43552]
[1730138331929,0.97786479,69043.0,69042.0,0.43552]
[1730138332356,0.80845083,69043.0,69042.0,0.43552]
[1730138333298,0.93869137,69043.0,69042.0,0.43552]
[1730138334567,0.64610499,69043.0,69042.0,0.43552]
[1730138335645,0.63254061,69043.0,69042.0,0.43552]
[1730138336541,0.63748859,69043.0,69042.0,0.43552]
[1730138336744,0.74868674,69043.0,69042.0,0.43552]
[1730138336956,0.77138647,69043.0,69042.0,0.43552]
[1730138337839,0.92189028,69043.0,69042.0,0.43552]
[1730138338258,0.92188275,69043.0,69042.0,0.43552]
[1730138340361,0.89918302,69043.0,69042.0,0.43552]
[1730138340772,0.89913909,69043.0,69042.0,0.43552]
[1730138343346,0.89913909,69043.0,69042.0,0.42713717]
[1730138344711,0.8991656,69043.0,69042.0,0.42713717]
[1730138348446,0.85302774,69043.0,69042.0,0.42713717]
[1730138348725,1.16911891,69043.0,69042.0,0.39450367]
[1730138348982,1.61277798,69043.0,69042.0,0.1052502]
[1730138349243,1.5278486,69043.0,69042.0,0.06107795]
[1730138349476,1.74509522,69043.0,69042.0,0.04189689]
[1730138349967,1.74509522,69043.0,69042.0,8.9e-07]
[1730138349968,1.3104523,69043.0,69042.0,8.9e-07]
[1730138350226,1.3104523,69043.0,69033.0,0.001648]
[1730138350227,0.745356,69034.0,69033.0,0.001648]
[1730138350449,1.32459438,69034.0,69033.0,0.001648]
[1730138352029,1.28929297,69034.0,69033.0,0.001648]
[1730138352235,1.32454301,69034.0,69033.0,0.001648]
[1730138352457,1.33854301,69034.0,69033.0,0.001648]
[1730138352667,1.48904682,69034.0,69033.0,0.001648]
[1730138352888,1.48904682,69034.0,69033.0,0.002648]
[1730138354841,1.48704682,69034.0,69033.0,0.002648]
[1730138355044,1.50975283,69034.0,69033.0,0.002648]
[1730138355249,1.52375694,69034.0,69033.0,0.002648]
[1730138355516,1.29936064,69034.0,69033.0,0.002648]
[1730138355777,1.61919075,69034.0,69033.0,0.002648]
[1730138356002,1.52273092,69034.0,69033.0,0.002648]
[1730138356235,1.63202558,69034.0,69033.0,0.002648]
[1730138356703,1.52373092,69034.0,69033.0,0.002648]
[1730138357420,1.63200409,69034.0,69033.0,0.002648]
[1730138357654,1.60929808,69034.0,69033.0,0.002648]
[1730138358860,1.47419808,69034.0,69033.0,0.002648]
[1730138359098,1.36592491,69034.0,69033.0,0.002648]
[1730138359330,1.36792491,69034.0,69033.0,0.002648]
[1730138359965,0.267879,69023.0,69020.0,0.21780956]
[1730138360169,0.61897669,69023.0,69020.0,0.21780956]
[1730138360608,0.61897669,69023.0,69015.0,0.1295]
[1730138361259,0.63197669,69023.0,69022.0,0.002648]
[1730138361475,0.63197669,69023.0,69022.0,0.003648]
[1730138363180,0.63192845,69023.0,69022.0,0.003648]
[1730138363441,0.63192494,69023.0,69022.0,0.003648]
[1730138363659,0.77587521,69023.0,69022.0,0.003648]
[1730138364468,0.73256435,69023.0,69022.0,0.003648]
[1730138364978,0.77587189,69023.0,69022.0,0.003648]
[1730138365617,0.73256435,69023.0,69022.0,0.003648]
[1730138366059,0.73256435,69023.0,69022.0,0.00309379]
[1730138366775,0.68653123,69023.0,69022.0,0.00309379]
[1730138366988,0.73257111,69023.0,69022.0,0.00309379]
[1730138368029,0.7217382,69023.0,69022.0,0.00309379]
[1730138369161,0.73257715,69023.0,69022.0,0.00309379]
[1730138369471,0.58862688,69023.0,69022.0,0.21679379]
[1730138370327,0.58862688,69023.0,69022.0,0.21620665]
[1730138371703,0.65360871,69023.0,69022.0,0.21620665]
[1730138371935,0.58862688,69023.0,69022.0,0.21620665]
[1730138372139,0.63194723,69023.0,69022.0,0.21620665]
[1730138372386,0.57781341,69023.0,69022.0,0.21620665]
[1730138372597,0.63197564,69023.0,69022.0,0.21620665]
[1730138372795,0.74219278,69023.0,69022.0,0.21620665]
[1730138374561,0.74219548,69023.0,69022.0,0.21620665]
[1730138374770,0.70587129,69023.0,69022.0,0.21620665]
[1730138374981,1.06364374,69023.0,69022.0,0.00250665]
[1730138375194,0.9770013,69023.0,69022.0,0.00250665]
[1730138375828,0.9750013,69023.0,69022.0,0.00250665]
[1730138376064,0.8305707,69023.0,69022.0,0.00250665]
[1730138376277,0.86584582,69023.0,69022.0,0.00250665]
[1730138377926,0.88855335,69023.0,69022.0,0.00250665]
[1730138378545,0.167898,69014.0,69013.0,0.077248]
[1730138378754,0.36451767,69014.0,69013.0,0.077248]
[1730138380211,0.36951767,69014.0,69013.0,0.078248]
[1730138383982,0.36961066,69014.0,69013.0,0.078248]
[1730138385781,0.3696083,69014.0,69013.0,0.078248]
[1730138387310,0.3696076,69014.0,69013.0,0.078248]
[1730138387725,0.36960666,69014.0,69013.0,0.078248]
[1730138389208,0.41294611,69014.0,69013.0,0.078248]
[1730138390379,0.36960666,69014.0,69013.0,0.078248]
[1730138391213,0.43461636,69014.0,69013.0,0.078248]
[1730138392230,0.61658549,69014.0,69013.0,0.078248]
[1730138393183,0.63825522,69014.0,69013.0,0.078248]
[1730138394263,0.52990658,69014.0,69013.0,0.078248]
[1730138394931,0.56524289,69014.0,69013.0,0.078248]
[1730138395353,0.56524251,69014.0,69013.0,0.078248]
[1730138396081,0.56524251,69014.0,69013.0,0.224848]
[1730138396082,0.65097105,69014.0,69013.0,0.224848]
[1730138396289,0.15177355,69014.0,69013.0,0.48094615]
[1730138396529,0.0865413,69014.0,69013.0,0.48372766]
[1730138396693,0.13002376,69014.0,69013.0,0.48372766]
[1730138396891,0.07566513,69014.0,69013.0,0.48372766]
[1730138397096,0.08653596,69014.0,69013.0,0.48372766]
[1730138397311,0.13001643,69014.0,69013.0,0.48372766]
[1730138397711,0.08653596,69014.0,69013.0,0.48372766]
[1730138398497,0.08153596,69014.0,69013.0,0.48372766]
[1730138398702,0.08152942,69014.0,69013.0,0.48372766]
[1730138398935,0.08352914,69014.0,69013.0,0.48372766]
[1730138399138,0.07266513,69014.0,69013.0,0.48372766]
[1730138399354,0.01358854,69014.0,69013.0,0.48372766]
[1730138399562,0.03630557,69014.0,69013.0,0.50572766]
[1730138399780,0.02270557,69021.0,69013.0,0.50572766]